fUST/lending_fUST_20260202
["ID","MTS","AMOUNT","RATE_DAILY","PERIOD"]
[404224330,1769976638880,-107.46391441,0.00036631,120]
[404224331,1769976638892,-392.53608559,0.00036631,120]
[404224332,1769976638905,-500.0,0.00036631,120]
[404224333,1769976638915,-500.0,0.00036631,120]
[404224334,1769976638924,-141.8489661,0.00036631,120]
[404224335,1769976638936,-358.1510339,0.00036631,120]
[404224336,1769976638945,-500.0,0.00036631,120]
[404224337,1769976638956,-500.0,0.00036631,120]
[404224338,1769976638966,-500.0,0.00036631,120]
[404224339,1769976638975,-500.0,0.00036631,120]
[404224340,1769976638984,-500.0,0.00036631,120]
[404224341,1769976638994,-228.85575784,0.00036631,120]
[404224379,1769976640238,-271.14424216,0.00036631,120]
[404224380,1769976640247,-500.0,0.00036631,120]
[404224381,1769976640256,-500.0,0.00036631,120]
[404224382,1769976640265,-649.69,0.00036631,120]
[404224383,1769976640274,-158.75385364,0.00036767,30]
[404224384,1769976640283,-740.74221401,0.00036824,3]
[404224385,1769976640292,-160.0,0.0003683,120]
[404224386,1769976640301,-150.0,0.0003683,2]
[404224387,1769976640310,-1957.13441652,0.0003683,2]
[404224388,1769976640320,-825.6962295,0.0003683,2]
[404224389,1769976640331,-3687.21165727,0.0003683,2]
[404224390,1769976640342,-334.3159,0.0003683,2]
[404224391,1769976640353,-916.57883099,0.0003683,2]
[404224643,1769976644644,-1041.66666667,0.00035699,30]
[404224644,1769976644654,-1041.66666667,0.0003664,120]
[404224645,1769976644668,-98.67627112,0.000367,22]
[404224646,1769976644680,-901.32372888,0.000367,22]
[404224647,1769976644689,-1048.95,0.0003682,10]
[404224648,1769976644699,-2801.41093038,0.0003683,2]
[404224649,1769976645275,-962.1005026,0.0003683,2]
[404224659,1769976646286,-3012.72251891,0.0003683,2]
[404224662,1769976646750,-1607.03640909,0.0003683,2]
[404224663,1769976646762,-14068.06331875,0.0003683,2]
[404224664,1769976670766,500.0,0.0003683,31]
[404224665,1769976671135,500.0,0.0003683,31]
[404224666,1769976671337,500.0,0.0003683,31]
[404224667,1769976671632,500.0,0.0003683,31]
[404224668,1769976672106,500.0,0.0003683,31]
[404224669,1769976672401,500.0,0.0003683,31]
[404224670,1769976672693,500.0,0.0003683,31]
[404224671,1769976672986,500.0,0.0003683,31]
[404224672,1769976673265,500.0,0.0003683,31]
[404224673,1769976673553,500.0,0.0003683,31]
[404224674,1769976673856,500.0,0.0003683,31]
[404224675,1769976674143,500.0,0.0003683,31]
[404224676,1769976674416,500.0,0.0003683,31]
[404224677,1769976674692,500.0,0.0003683,31]
[404224678,1769976674980,500.0,0.0003683,31]
[404224679,1769976675262,500.0,0.0003683,31]
[404224680,1769976675547,500.0,0.0003683,31]
[404224681,1769976675858,500.0,0.0003683,31]
[404224682,1769976676154,500.0,0.0003683,31]
[404224683,1769976676441,500.0,0.0003683,31]
[404224684,1769976676943,-475.0,0.00034551,120]
[404224685,1769976676966,-475.0,0.00034551,120]
[404224686,1769976676989,-475.0,0.00034551,120]
[404224687,1769976677012,-500.0,0.00036631,120]
[404224688,1769976677035,-500.0,0.00036631,120]
[404224689,1769976677058,-500.0,0.00036631,120]
[404224690,1769976677080,-5000.0,0.0003683,20]
[404224691,1769976677107,-270.138241,0.0003683,31]
[404224692,1769976677129,-2000.0,0.000369,120]
[404224693,1769976677150,-365.78,0.00036986,22]
[404224694,1769976677172,-273.82022084,0.00036999,120]
[404224695,1769976677194,-165.72413869,0.00037,120]
[404224696,1769976677214,-1000.0,0.00037,120]
[404224697,1769976677235,-500.0,0.00037,31]
[404224698,1769976677255,-1707.25183,0.00037,120]
[404224699,1769976677958,448.15,0.000369,30]
[404224700,1769976694731,151.0,0.0003683,31]
[404224701,1769976695038,151.0,0.0003683,31]
[404224702,1769976695329,151.0,0.0003683,31]
[404224703,1769976758305,151.0,0.0003683,120]
[404224707,1769976799648,500.0,0.00036776,120]
[404224708,1769976799909,500.0,0.00036776,120]
[404224709,1769976800135,500.0,0.00036776,120]
[404224710,1769976800378,500.0,0.00036776,120]
[404224711,1769976800616,500.0,0.00036776,120]
[404224712,1769976800860,500.0,0.00036776,120]
[404224713,1769976801094,500.0,0.00036776,120]
[404224714,1769976801350,500.0,0.00036776,120]
[404224715,1769976801582,500.0,0.00036776,120]
[404224716,1769976801818,500.0,0.00036776,120]
[404224717,1769976802077,500.0,0.00036776,120]
[404224718,1769976802302,500.0,0.00036776,120]
[404224719,1769976802551,500.0,0.00036776,120]
[404224720,1769976802800,500.0,0.00036776,120]
[404224721,1769976803644,-207.99041912,0.0001259,2]
[404224722,1769976803667,-155.32447673,0.00012816,2]
[404224723,1769976805811,-144.67552327,0.00012816,2]
[404224724,1769976805835,-224.30937258,0.00012817,2]
[404224728,1769977026870,500.0,0.00036776,120]
[404224729,1769977027142,500.0,0.00036776,120]
[404224730,1769977027546,500.0,0.00036776,120]
[404224731,1769977027790,500.0,0.00036776,120]
[404224732,1769977028052,500.00000034,0.00036776,120]
[404224733,1769977028693,-423.68610983,0.00012688,2]
[404224734,1769977082013,5000.0,0.00012446,2]
[404224736,1769977297483,1654.6639853,0.00012446,2]
[404224737,1769977297506,3345.3360147,0.00012446,2]
[404224738,1769977309594,-300.0,0.00012685,2]
[404224739,1769977309623,-600.0,0.00012686,2]
[404224740,1769977309653,-150.0,0.00012749,2]
[404224741,1769977309681,-1200.0,0.00012813,2]
[404224742,1769977311451,4060.33,0.00012813,2]
[404224743,1769977319687,1439.68,0.00012813,2]
[404224744,1769977319710,3560.32,0.00012813,2]
[404224745,1769977322870,300.0,0.00012812,2]
[404224746,1769977341718,5000.0,0.00012813,2]
[404224747,1769977353137,500.0,0.00012812,2]
[404224748,1769977353165,500.0,0.00012812,2]
[404224749,1769977353194,139.69,0.00012812,2]
[404224750,1769977353218,360.31,0.00012812,2]
[404224751,1769977353245,525.03404007,0.00012812,2]
[404224752,1769977353272,500.0,0.00012812,2]
[404224753,1769977353301,500.0,0.00012812,2]
[404224754,1769977353429,500.0,0.00012812,2]
[404224755,1769977353458,500.0,0.00012812,2]
[404224756,1769977353488,500.0,0.00012812,2]
[404224757,1769977353515,500.0,0.00012812,2]
[404224758,1769977353545,500.0,0.00012812,2]
[404224759,1769977353576,500.0,0.00012812,2]
[404224760,1769977353604,500.0,0.00012812,2]
[404224761,1769977353632,500.0,0.00012812,2]
[404224762,1769977353659,500.0,0.00012812,2]
[404224763,1769977353686,500.0,0.00012812,2]
[404224764,1769977353714,500.0,0.00012812,2]
[404224765,1769977353746,500.0,0.00012812,2]
[404224766,1769977353776,500.0,0.00012812,2]
[404224767,1769977353806,500.0,0.00012812,2]
[404224768,1769977353832,517.61551041,0.00012812,2]
[404224769,1769977353861,500.0,0.00012812,2]
[404224770,1769977353888,97.05044952,0.00012812,2]
[404224771,1769977353909,402.94955048,0.00012812,2]
[404224772,1769977353937,500.0,0.00012812,2]
[404224773,1769977353964,500.0,0.00012812,2]
[404224774,1769977353999,500.0,0.00012812,2]
[404224775,1769977354026,237.90147456,0.00012812,2]
[404224776,1769977354056,500.0,0.00012812,2]
[404224777,1769977354086,500.0,0.00012812,2]
[404224778,1769977354114,500.0,0.00012812,2]
[404224779,1769977354146,500.0,0.00012812,2]
[404224780,1769977354175,500.0,0.00012812,2]
[404224781,1769977354206,500.0,0.00012812,2]
[404224782,1769977354233,302.51515267,0.00012812,2]
[404224783,1769977354261,500.0,0.00012812,2]
[404224784,1769977354287,500.0,0.00012812,2]
[404224785,1769977354316,500.0,0.00012812,2]
[404224786,1769977354345,500.0,0.00012812,2]
[404224787,1769977354375,500.0,0.00012812,2]
[404224788,1769977354402,500.0,0.00012812,2]
[404224789,1769977354429,500.0,0.00012812,2]
[404224790,1769977354458,500.0,0.00012812,2]
[404224791,1769977354486,500.0,0.00012812,2]
[404224792,1769977354514,56.64382229,0.00012812,2]
[404224793,1769977357879,-422.09607146,0.00012812,2]
[404224794,1769977357908,-500.0,0.00012812,2]
[404224795,1769977357936,-500.0,0.00012812,2]
[404224796,1769977357963,-500.0,0.00012812,2]
[404224797,1769977357992,-500.0,0.00012812,2]
[404224798,1769977358026,-500.0,0.00012812,2]
[404224799,1769977358058,-352.61048303,0.00012812,2]
[404224800,1769977358090,-500.0,0.00012812,2]
[404224801,1769977358119,-500.0,0.00012812,2]
[404224802,1769977358149,-500.0,0.00012812,2]
[404224803,1769977358360,-500.0,0.00012812,2]
[404224804,1769977358389,-500.0,0.00012812,2]
[404224805,1769977358418,-566.79543017,0.00012812,2]
[404224806,1769977358446,-500.0,0.00012812,2]
[404224807,1769977358474,-500.0,0.00012812,2]
[404224808,1769977358502,-500.0,0.00012812,2]
[404224809,1769977358530,-500.0,0.00012812,2]
[404224810,1769977358557,-500.0,0.00012812,2]
[404224811,1769977358585,-500.0,0.00012812,2]
[404224812,1769977358613,-366.41913966,0.00012812,2]
[404224813,1769977360917,-133.58086034,0.00012812,2]
[404224814,1769977360948,-500.0,0.00012812,2]
[404224815,1769977360977,-500.0,0.00012812,2]
[404224816,1769977361008,-500.0,0.00012812,2]
[404224817,1769977361040,-500.0,0.00012812,2]
[404224818,1769977361073,-500.0,0.00012812,2]
[404224819,1769977361102,-500.0,0.00012812,2]
[404224820,1769977361130,-500.0,0.00012812,2]
[404224821,1769977361157,-51.11349818,0.000129,2]
[404224822,1769977363917,-2630.62128296,0.000129,2]
[404224823,1769977363948,-300.0,0.00013073,2]
[404224824,1769977363980,-300.0,0.00013073,2]
[404224825,1769977364013,-300.0,0.00013073,2]
[404224826,1769977364045,-300.0,0.00013073,2]
[404224827,1769977364074,-300.0,0.00013073,2]
[404224828,1769977364103,-300.0,0.00013073,2]
[404224829,1769977364132,-300.0,0.00013073,2]
[404224830,1769977364162,-238.76743408,0.00013073,2]
[404224831,1769977366963,-5000.0,0.00012684,2]
[404224832,1769977542123,-301.99510603,0.00012684,2]
[404224833,1769977559320,150.0,0.00022532,120]
[404224834,1769977559665,150.0,0.00024946,120]
[404224835,1769977560012,150.0,0.0002736,120]
[404224836,1769977560921,199.22,0.00029774,120]
[404224840,1769977567006,-5000.0,0.00012557,2]
[404224841,1769977572864,-4698.00489397,0.00012684,2]
[404224842,1769977572896,-150.0,0.00012748,2]
[404224843,1769977572927,-4.00021206,0.00012811,2]
[404224844,1769977575806,-295.99978794,0.00012811,2]
[404224845,1769977575932,-300.0,0.0001294,2]
[404224846,1769977575962,-164.0,0.00012941,2]
[404224847,1769977575991,-300.0,0.00012941,2]
[404224848,1769977576021,-300.0,0.00012941,2]
[404224849,1769977576054,-1200.0,0.00012941,2]
[404224850,1769977577780,4880.01042412,0.00012683,2]
[404224851,1769977593862,352.58308125,0.00012363,2]
[404224852,1769977595301,-160.56,0.00012556,2]
[404224853,1769977597851,-336.17394446,0.00012556,2]
[404224854,1769977631088,-292.47499187,0.00012556,2]
[404224855,1769977654118,-386.80767877,0.00012556,2]
[404224856,1769977672364,10000.01,0.00012,5]
[404224857,1769977672386,10000.01,0.00012,5]
[404224858,1769977672408,3747.70496488,0.00012,5]
[404224859,1769977678177,5000.0,0.00012366,2]
[404224860,1769977699974,862.89023184,0.00012366,2]
[404224861,1769977705504,389.41480328,0.0001,7]
[404224862,1769977705527,3.904918,0.0001,7]
[404224867,1769977719876,200.0,8e-05,7]
[404224868,1769977731628,170.4471022,0.0001217,2]
[404224869,1769977759122,-3823.9833849,0.00012556,2]
[404224870,1769977759143,-119.98957588,0.00012683,2]
[404224871,1769977759264,-300.0,0.00013067,2]
[404224872,1769977759285,-15458.17099502,0.00013068,2]
[404224873,1769977759307,-300.0,0.00013068,2]
[404224874,1769977759326,-300.0,0.00013068,2]
[404224875,1769977759347,-300.0,0.00013068,2]
[404224876,1769977759368,-300.0,0.00013068,2]
[404224877,1769977759388,-300.0,0.00013068,2]
[404224878,1769977759410,-300.0,0.00013068,2]
[404224879,1769977759431,-300.0,0.00013068,2]
[404224880,1769977759452,-300.0,0.00013068,2]
[404224881,1769977759472,-300.0,0.00013068,2]
[404224882,1769977759493,-300.0,0.00013068,2]
[404224883,1769977759513,-300.0,0.00013068,2]
[404224884,1769977759536,-300.0,0.00013068,2]
[404224885,1769977759556,-300.0,0.00013068,2]
[404224886,1769977759578,-300.0,0.00013068,2]
[404224887,1769977759599,-300.0,0.00013068,2]
[404224888,1769977759619,-2346.51793355,0.00013172,2]
[404224889,1769977759643,-500.0,0.00013271,2]
[404224890,1769977759663,-500.0,0.00013271,2]
[404224891,1769977759683,-500.0,0.00013271,2]
[404224892,1769977759705,-500.0,0.00013271,2]
[404224893,1769977759726,-287.35864803,0.00013271,2]
[404224894,1769977759746,-500.0,0.00013271,2]
[404224895,1769977759768,-500.0,0.00013271,2]
[404224896,1769977759790,-500.0,0.00013271,2]
[404224897,1769977759811,-252.20083646,0.00013271,2]
[404224898,1769977759834,-500.0,0.00013271,2]
[404224899,1769977759858,-178.06783145,0.00013271,2]
[404224900,1769977759878,-500.0,0.00013271,2]
[404224901,1769977759899,-500.0,0.00013271,2]
[404224902,1769977759919,-500.0,0.00013271,2]
[404224903,1769977759943,-182.91404417,0.00013271,2]
[404224904,1769977779274,5000.0,0.00012366,2]
[404224914,1769977801171,4625.6579798,0.00012366,2]
[404224915,1769977801194,374.3420202,0.00012366,2]
[404224916,1769977823625,5000.0,0.00012366,2]
[404224970,1769977836782,-32.49722132,0.00012611,2]
[404224971,1769977836794,-2001.11757934,0.00012611,2]
[404224972,1769977836803,-202.4463534,0.00012666,2]
[404224973,1769977836813,-150.0,0.00012875,2]
[404224974,1769977836822,-5000.0,0.00013138,2]
[404224975,1769977836831,-121.03177398,0.00013271,2]
[404224976,1769977836840,-300.0,0.00013272,2]
[404224977,1769977836849,-1200.0,0.00013272,2]
[404224978,1769977836860,-500.0,0.00013273,2]
[404224979,1769977836869,-500.0,0.00013273,2]
[404224980,1769977836878,-500.0,0.00013273,2]
[404224981,1769977836888,-500.0,0.00013273,2]
[404224982,1769977836898,-600.0,0.00013328,2]
[404224983,1769977836908,-300.0,0.00013537,2]
[404224984,1769977836919,-300.0,0.00013537,2]
[404224985,1769977836929,-300.0,0.00013537,2]
[404224986,1769977836938,-300.0,0.00013537,2]
[404224987,1769977836947,-300.0,0.00013537,2]
[404224988,1769977836957,-300.0,0.00013537,2]
[404224989,1769977836965,-300.0,0.00013537,2]
[404224990,1769977836974,-300.0,0.00013537,2]
[404224991,1769977836984,-300.0,0.00013537,2]
[404224992,1769977836995,-300.0,0.00013537,2]
[404224993,1769977837004,-300.0,0.00013537,2]
[404224994,1769977837014,-300.0,0.00013537,2]
[404224995,1769977837024,-300.0,0.00013537,2]
[404224996,1769977837033,-300.0,0.00013537,2]
[404224997,1769977837043,-300.0,0.00013537,2]
[404224998,1769977837053,-334.94188757,0.00013698,2]
[404224999,1769977837062,-500.0,0.00013698,2]
[404225000,1769977837071,-357.38498917,0.00013699,2]
[404225001,1769977837080,-500.0,0.00013699,2]
[404225002,1769977837089,-500.0,0.00013699,2]
[404225003,1769977837098,-502.70621251,0.00013699,2]
[404225004,1769977837107,-501.32902716,0.00013699,2]
[404225005,1769977837116,-595.58161953,0.00013699,2]
[404225006,1769977837125,-500.0,0.00013699,2]
[404225007,1769977837138,-500.0,0.00013699,2]
[404225008,1769977837147,-500.0,0.00013699,2]
[404225009,1769977837157,-507.49218995,0.00013699,2]
[404225010,1769977837168,-500.0,0.00013699,2]
[404225011,1769977837178,-501.67094293,0.00013699,2]
[404225012,1769977837187,-500.0,0.00013699,2]
[404225013,1769977837196,-500.0,0.00013699,2]
[404225014,1769977837207,-1000.0,0.00013821,2]
[404225015,1769977837217,-501.94091464,0.00013821,2]
[404225016,1769977837227,-150.17335933,0.00014175,2]
[404225017,1769977837237,-2031.58321745,0.00014198,2]
[404225018,1769977837248,-500.0,0.00014246,2]
[404225019,1769977837258,-343.51062108,0.00014247,2]
[404225020,1769977837267,-1002.16076125,0.00014247,2]
[404225021,1769977837277,-500.0,0.00014247,2]
[404225022,1769977837287,-1000.0,0.00014247,2]
[404225023,1769977837298,-153.845326,0.00014247,2]
[404225024,1769977837307,-200.29105694,0.00014247,2]
[404225025,1769977837317,-1000.0,0.00014247,2]
[404225026,1769977837327,-722.3651231,0.00014247,2]
[404225027,1769977837338,-202.2441093,0.00014261,2]
[404225028,1769977837348,-1000.0,0.00014368,2]
[404225029,1769977837358,-1680.0,0.00014599,2]
[404225030,1769977837368,-720.0,0.00014661,2]
[404225031,1769977837378,-1000.0,0.00014795,2]
[404225032,1769977837388,-177.0,0.00014874,2]
[404225033,1769977837398,-334.92,0.00015342,2]
[404225034,1769977837487,-780.0,0.00016059,2]
[404225035,1769977837499,-864.0,0.00016127,2]
[404225036,1769977837508,-204.0,0.00016874,2]
[404225037,1769977837517,-380.09713847,0.00016999,2]
[404225038,1769977837526,-201.61665098,0.00016999,2]
[404225039,1769977837535,-541.78421547,0.00017,2]
[404225040,1769977837547,-384.355,0.00017,2]
[404225041,1769977837559,-1330.86509089,0.00017,2]
[404225048,1769977838110,-12982.32660672,0.00017,2]
[404225049,1769977838119,-2757.39116684,0.0001747,2]
[404225050,1769977838130,-264.942,0.00017471,2]
[404225051,1769977838142,-1000.0,0.0001774,2]
[404225052,1769977838152,-231.0,0.00018874,2]
[404225053,1769977838161,-431.54838762,0.00019306,2]
[404225054,1769977838174,-309.19382639,0.00019306,2]
[404225055,1769977838183,-1000.0,0.00019514,2]
[404225056,1769977838193,-244.0,0.00019514,2]
[404225057,1769977838202,-258.0,0.00020874,2]
[404225058,1769977838213,-494.03971792,0.00021465,10]
[404225059,1769977838522,4625.6679798,0.00012366,2]
[404225060,1769977838545,374.3320202,0.00012366,2]
[404225402,1769977843499,-505.96028208,0.00021465,10]
[404225403,1769977843509,-492.0,0.00021465,10]
[404225404,1769977843518,-137.27219367,0.00021465,10]
[404225410,1769977843669,-156.44551621,0.00021465,10]
[404225411,1769977843680,-150.17335933,0.00022287,2]
[404225412,1769977843689,-193.38142728,0.00022874,2]
[404225413,1769977843700,-91.61857272,0.00022874,2]
[404225414,1769977843710,-1000.0,0.00023612,10]
[404225415,1769977843719,-791.0,0.00023612,10]
[404225416,1769977843728,-210.0,0.00024356,13]
[404225417,1769977843737,-312.0,0.00024875,2]
[404225418,1769977843748,-158.3,0.00025,5]
[404225419,1769977843759,-1000.0,0.00025973,10]
[404225420,1769977843769,-1000.0,0.00025973,10]
[404225421,1769977843779,-339.0,0.00026875,2]
[404225422,1769977843789,-1000.0,0.0002857,30]
[404225423,1769977843798,-1000.0,0.0002857,30]
[404225424,1769977843807,-579.0,0.0002857,30]
[404225425,1769977843817,-630.0,0.00030206,2]
[404225426,1769977843826,-2151.0,0.00030206,2]
[404225427,1769977843835,-179.0,0.00030206,2]
[404225428,1769977843844,-150.17335933,0.00030399,2]
[404225429,1769977843854,-500.0,0.00030824,120]
[404225430,1769977843863,-472.64451229,0.00031368,2]
[404225431,1769977843872,-850.76012212,0.00031368,2]
[404225432,1769977843881,-179.39610886,0.00031368,2]
[404225433,1769977843890,-322.91299595,0.00031368,2]
[404225434,1769977843900,-1000.0,0.00031428,30]
[404225435,1769977843909,-1000.0,0.00031428,30]
[404225436,1769977843919,-1000.0,0.00031428,30]
[404225437,1769977843932,-630.0,0.00033206,2]
[404225438,1769977843944,-2151.0,0.00033206,2]
[404225439,1769977843957,-179.0,0.00033206,2]
[404225440,1769977843969,-1000.0,0.0003457,30]
[404225441,1769977843981,-430.0,0.0003457,30]
[404225442,1769977843992,-62058.42259474,0.00035,2]
[404225443,1769977844847,-308.617,0.00035,2]
[404225444,1769977844864,-5433.57905564,0.00035,2]
[404225445,1769977844878,-1021.08288828,0.00035,2]
[404225454,1769977847050,-7719.2,0.00035,2]
[404225455,1769977847067,-1947.59,0.0003499,10]
[404225456,1769977847078,-143537.75731351,0.00035,2]
[404225457,1769977883733,-300.0,0.00013673,2]
[404225458,1769977883756,-203.90234355,0.00014221,2]
[404225459,1769977885334,-306.61887554,0.00014221,2]
[404225463,1769978070087,475.0,0.00028036,120]
[404225464,1769978070402,475.0,0.00028036,120]
[404225465,1769978110686,151.0,0.00036782,20]
[404225466,1769978110881,151.0,0.00036782,31]
[404225467,1769978111317,151.0,0.00036782,20]
[404225468,1769978111501,156.587,0.00036782,80]
[404225469,1769978111925,151.0,0.00036782,20]
[404225470,1769978112294,162.380719,0.00036782,30]
[404225471,1769978113240,168.3888056,0.00036782,49]
[404225472,1769978113857,174.61919141,0.00036782,120]
[404225473,1769978114472,181.08010149,0.00036782,30]
[404225474,1769978115138,187.78006525,0.00036782,48]
[404225475,1769978115748,194.72792766,0.00036782,47]
[404225476,1769978116367,201.93286099,0.00036782,20]
[404225477,1769978116972,209.40437684,0.00036782,20]
[404225478,1769978117628,217.15233878,0.00036782,20]
[404225479,1769978118183,225.18697532,0.00036782,20]
[404225480,1769978118459,155.64982553,0.00036782,20]
[404225481,1769978118823,233.51889341,0.00036782,20]
[404225482,1769978119442,242.15909246,0.00036782,20]
[404225483,1769978120070,251.11897888,0.00036782,20]
[404225484,1769978120688,251.11897888,0.00036782,20]
[404225487,1769978280553,187.92,2.997e-05,2]
[404225488,1769978280892,187.92,2.997e-05,2]
[404225489,1769978281194,187.92,2.997e-05,2]
[404225490,1769978341202,9061.9179798,0.0001,2]
[404225491,1769978341224,9133.5120202,0.0001,2]
[404225492,1769978381117,528.95188848,0.00036787,120]
[404225493,1769978423728,-352.71846083,0.00012943,2]
[404225609,1769978495844,178.305353,0.00036787,31]
[404226412,1769978550027,-316.16540055,0.000332,117]
[404226414,1769978550088,-990.0,0.00035616,120]
[404226416,1769978550146,-600.0,0.00035699,30]
[404226418,1769978550203,-216.65108353,0.00036029,30]
[404226420,1769978550254,-238.79272384,0.00036029,30]
[404226421,1769978550322,-150.0,0.00036029,30]
[404226423,1769978550394,-150.0,0.00036029,30]
[404226425,1769978550463,-150.0,0.00036029,30]
[404226428,1769978550536,-500.0,0.00036029,30]
[404226429,1769978550605,-500.0,0.00036029,30]
[404226431,1769978550675,-151.09031229,0.00036029,30]
[404226433,1769978550743,-200.0,0.00036029,30]
[404226435,1769978550817,-200.4215101,0.00036166,30]
[404226437,1769978550887,-500.0,0.00036166,30]
[404226439,1769978550960,-500.0,0.00036166,30]
[404226441,1769978551033,-500.0,0.00036303,30]
[404226443,1769978551104,-500.0,0.00036303,30]
[404226446,1769978551175,-500.0,0.0003644,30]
[404226447,1769978551245,-500.0,0.0003644,30]
[404226449,1769978551314,-500.0,0.00036513,31]
[404226452,1769978551387,-500.0,0.00036513,31]
[404226453,1769978551458,-500.0,0.00036577,30]
[404226456,1769978551535,-300.0,0.00036577,30]
[404226458,1769978551607,-500.0,0.0003665,31]
[404226460,1769978551678,-500.0,0.0003665,31]
[404226462,1769978551750,-500.0,0.00036714,30]
[404226464,1769978551818,-151.0,0.00036775,31]
[404226465,1769978551879,-151.0,0.00036775,31]
[404226466,1769978551943,-151.0,0.00036775,31]
[404226467,1769978552007,-151.0,0.00036775,31]
[404226469,1769978552068,-151.0,0.00036775,31]
[404226471,1769978552126,-151.0,0.00036775,31]
[404226473,1769978552185,-151.0,0.00036775,31]
[404226475,1769978552243,-151.0,0.00036782,31]
[404226478,1769978552308,-151.0,0.00036782,31]
[404226480,1769978552373,-151.0,0.00036782,31]
[404226482,1769978552440,-151.0,0.00036782,31]
[404226484,1769978552508,-151.0,0.00036782,31]
[404226486,1769978552578,-151.0,0.00036782,31]
[404226487,1769978552648,-151.0,0.00036782,31]
[404226490,1769978552721,-151.0,0.00036782,31]
[404226491,1769978552790,-151.0,0.00036782,31]
[404226493,1769978552854,-184.711374,0.00036782,31]
[404226495,1769978552921,-153.648775,0.00036782,31]
[404226499,1769978553106,-500.0,0.00036787,31]
[404226502,1769978553173,-500.0,0.00036787,31]
[404226503,1769978553245,-184.112959,0.00036787,31]
[404226505,1769978553316,-151.0,0.00036787,31]
[404226507,1769978553390,-151.0,0.00036787,31]
[404226509,1769978553466,-151.0,0.00036787,31]
[404226511,1769978553534,-151.0,0.00036787,31]
[404226513,1769978553603,-151.0,0.00036787,31]
[404226515,1769978553676,-151.0,0.00036787,31]
[404226517,1769978553750,-190.814935,0.00036787,31]
[404226519,1769978553824,-1405.86999457,0.00036829,120]
[404226521,1769978553898,-500.0,0.00036851,30]
[404226524,1769978553972,-403.33,0.000369,30]
[404226525,1769978554048,-500.0,0.00036924,31]
[404226528,1769978554124,-500.0,0.00036924,31]
[404226530,1769978554201,-500.0,0.00036988,30]
[404226532,1769978554277,-500.0,0.00037061,31]
[404226534,1769978554351,-500.0,0.00037061,31]
[404226535,1769978554424,-500.0,0.00037125,30]
[404226537,1769978554496,-224.69895742,0.00037198,31]
[404226539,1769978554570,-415.41821725,0.00037262,30]
[404226541,1769978554640,-352.47268,0.000373,120]
[404226543,1769978554712,-500.0,0.000373,120]
[404226545,1769978554785,-166.79050748,0.000373,120]
[404226547,1769978554858,-300.33976052,0.000374,32]
[404226549,1769978554927,-200.0,0.000375,120]
[404226551,1769978555000,-314.35451,0.000376,120]
[404226553,1769978555074,-2000.0,0.000379,120]
[404226555,1769978555147,-1000.0,0.00038,120]
[404226557,1769978555225,-500.0,0.00038,120]
[404226559,1769978555298,-5543.0,0.00038,120]